[Event "16th Marseille Festival 2023"]
[Site "Marseille"]
[Date "2023.12.30"]
[Round "3.1"]
[White "Lamard, Guillaume"]
[Black "Pichon, Ewen"]
[Result "1-0"]
[WhiteElo "2497"]
[BlackElo "2274"]
[PlyCount "53"]
[EventDate "2023.12.30"]
[EventType "swiss"]
[EventCountry "FRA"]
[TimeControl "5400+30"]

1. Nf3 {[%emt 0:00:03]} Nf6 {[%emt 0:01:35]} 2. c4 {[%emt 0:00:09]} e6 {[%emt 0:00:18]} 3. Nc3 {[%emt 0:00:08]} d5 {[%emt 0:00:09]} 4. e3 {[%emt 0:00:04]} a6 {[%emt 0:00:55]} 5. b3 {[%emt 0:02:51]} Bd6 {[%emt 0:01:57]} 6. Bb2 {[%emt 0:00:22]} O-O {[%emt 0:00:39]} 7. Rc1 {[%emt 0:06:19]} Qe7 {[%emt 0:03:25]} 8. d4 {[%emt 0:04:19]} dxc4 {[%emt 0:01:42]} 9. Bxc4 {[%emt 0:13:02]} c5 {[%emt 0:01:23]} 10. Bd3 {[%emt 0:02:43]} cxd4 {[%emt 0:05:49]} 11. Nxd4 {[%emt 0:00:15]} b5 {[%emt 0:03:12]} 12. Ne4 {[%emt 0:03:18]} Nxe4 {[%emt 0:04:54]} 13. Bxe4 {[%emt 0:00:05]} Bb4+ {[%emt 0:00:08]} 14. Kf1 {[%emt 0:03:00]} Ra7 {[%emt 0:03:55]} 15. g4 {[%emt 0:18:18]} Bb7 {[%emt 0:12:20]} 16. Bxb7 {[%emt 0:00:33]} Rxb7 {[%emt 0:00:33]} 17. Qf3 {[%emt 0:00:15]} Ba3 {[%emt 0:00:51]} 18. Bxa3 {[%emt 0:05:06]} Qxa3 {[%emt 0:00:16]} 19. Kg2 {[%emt 0:00:04]} Ra7 {[%emt 0:04:33]} 20. Rc2 {[%emt 0:00:26]} Nd7 {[%emt 0:00:14]} 21. Nc6 {[%emt 0:03:54]} Raa8 {[%emt 0:00:22]} 22. Rd1 {[%emt 0:01:56]} Nf6 {[%emt 0:04:28]} 23. e4 {[%emt 0:01:00]} Ne8 {[%emt 0:07:47]} 24. Rd7 {[%emt 0:02:38]} f5 {[%emt 0:06:08]} 25. e5 {[%emt 0:03:00]} Kh8 {[%emt 0:01:25]} 26. Nd4 {[%emt 0:06:10]} Rb8 {[%emt 0:02:40]} 27. Nxe6 {[%emt 0:00:14]} 1-0

[Event "16th Marseille Festival 2023"]
[Site "Marseille"]
[Date "2023.12.30"]
[Round "3.2"]
[White "Gusain, Himal"]
[Black "Malka, Samuel"]
[Result "1-0"]
[WhiteElo "2457"]
[BlackElo "2201"]
[PlyCount "103"]
[EventDate "2023.12.30"]
[EventType "swiss"]
[EventCountry "FRA"]
[TimeControl "5400+30"]

1. e4 {[%emt 0:02:36]} e5 {[%emt 0:00:10]} 2. Nf3 {[%emt 0:00:08]} Nc6 {[%emt 0:00:32]} 3. Bc4 {[%emt 0:00:07]} Nf6 {[%emt 0:00:16]} 4. d3 {[%emt 0:00:32]} h6 {[%emt 0:00:33]} 5. O-O {[%emt 0:02:38]} d6 {[%emt 0:00:13]} 6. a4 {[%emt 0:02:00]} a5 {[%emt 0:00:06]} 7. Nc3 {[%emt 0:00:50]} g6 {[%emt 0:02:44]} 8. h3 {[%emt 0:05:33]} Bg7 {[%emt 0:01:26]} 9. Be3 {[%emt 0:03:16]} O-O {[%emt 0:04:45]} 10. Qd2 {[%emt 0:00:59]} Kh7 {[%emt 0:05:14]} 11. d4 {[%emt 0:03:38]} Nxe4 {[%emt 0:12:30]} 12. Nxe4 {[%emt 0:00:17]} d5 {[%emt 0:00:01]} 13. Nxe5 {[%emt 0:07:29]} Nxe5 {[%emt 0:15:07]} 14. dxe5 {[%emt 0:00:36]} dxe4 {[%emt 0:00:12]} 15. Qxd8 {[%emt 0:01:31]} Rxd8 {[%emt 0:00:04]} 16. Bxf7 {[%emt 0:00:15]} Bxe5 {[%emt 0:00:11]} 17. Rfd1 {[%emt 0:03:00]} Bd7 {[%emt 0:10:59]} 18. Rd5 {[%emt 0:04:19]} Bf6 {[%emt 0:10:12]} 19. Bd4 {[%emt 0:05:13]} Bxd4 {[%emt 0:03:10]} 20. Rxd4 {[%emt 0:00:36]} Bc6 {[%emt 0:00:16]} 21. Rad1 {[%emt 0:00:50]} Rxd4 {[%emt 0:00:01]} 22. Rxd4 {[%emt 0:00:03]} Kg7 {[%emt 0:00:15]} 23. Bb3 {[%emt 0:00:35]} g5 {[%emt 0:06:34]} 24. Kf1 {[%emt 0:02:04]} Kf6 {[%emt 0:00:05]} 25. Ke2 {[%emt 0:00:49]} Ke5 {[%emt 0:02:48]} 26. Ke3 {[%emt 0:00:16]} h5 {[%emt 0:10:36]} 27. c3 {[%emt 0:02:13]} g4 {[%emt 0:08:02]} 28. Bc2 {[%emt 0:15:27]} gxh3 {[%emt 0:03:35]} 29. gxh3 {[%emt 0:00:11]} Rg8 {[%emt 0:02:28]} 30. Bxe4 {[%emt 0:00:10]} Rg1 {[%emt 0:00:23]} 31. Bxc6 {[%emt 0:01:52]} bxc6 {[%emt 0:00:00]} 32. Rh4 {[%emt 0:00:12]} Rb1 {[%emt 0:00:02]} 33. Rxh5+ {[%emt 0:00:07]} Kd6 {[%emt 0:00:09]} 34. Rxa5 {[%emt 0:06:24]} Rxb2 {[%emt 0:00:01]} 35. Rf5 {[%emt 0:00:56]} Rc2 {[%emt 0:00:51]} 36. Kd4 {[%emt 0:03:49]} Ra2 {[%emt 0:01:07]} 37. a5 {[%emt 0:00:54]} c5+ {[%emt 0:01:03]} 38. Rxc5 {[%emt 0:01:34]} Rxf2 {[%emt 0:00:01]} 39. Rd5+ {[%emt 0:01:24]} Kc6 {[%emt 0:00:05]} 40. Re5 {[%emt 0:05:52]} Kd6 {[%emt 0:00:51]} 41. Rh5 {[%emt 0:01:12]} Rf4+ {[%emt 0:00:09]} 42. Kd3 {[%emt 0:00:05]} Ra4 {[%emt 0:00:45]} 43. Kc2 {[%emt 0:00:35]} c6 {[%emt 0:00:31]} 44. Kb3 {[%emt 0:00:23]} Ra1 {[%emt 0:00:02]} 45. h4 {[%emt 0:00:18]} Rb1+ {[%emt 0:01:42]} 46. Ka2 {[%emt 0:03:17]} Rb8 {[%emt 0:01:41]} 47. Rg5 {[%emt 0:00:32]} Kc7 {[%emt 0:00:59]} 48. Rg7+ {[%emt 0:01:09]} Kd6 {[%emt 0:00:17]} 49. a6 {[%emt 0:00:07]} Ra8 {[%emt 0:00:44]} 50. a7 {[%emt 0:00:08]} Kc5 {[%emt 0:00:19]} 51. Kb3 {[%emt 0:00:11]} Kb6 {[%emt 0:00:06]} 52. h5 {[%emt 0:00:15]} 1-0

[Event "16th Marseille Festival 2023"]
[Site "Marseille"]
[Date "2023.12.30"]
[Round "3.3"]
[White "Baroyan, Davit"]
[Black "Bilych, Olexiy"]
[Result "0-1"]
[WhiteElo "2203"]
[BlackElo "2433"]
[PlyCount "70"]
[EventDate "2023.12.30"]
[EventType "swiss"]
[EventCountry "FRA"]
[TimeControl "5400+30"]

1. Nf3 {[%emt 0:00:10]} d5 {[%emt 0:00:10]} 2. g3 {[%emt 0:00:07]} Nf6 {[%emt 0:02:11]} 3. Bg2 {[%emt 0:00:07]} e6 {[%emt 0:00:03]} 4. O-O {[%emt 0:00:36]} Be7 {[%emt 0:00:04]} 5. c4 {[%emt 0:00:04]} O-O {[%emt 0:00:06]} 6. d4 {[%emt 0:00:49]} a5 {[%emt 0:00:04]} 7. Nc3 {[%emt 0:03:48]} Nbd7 {[%emt 0:02:35]} 8. Ne5 {[%emt 0:02:04]} c6 {[%emt 0:13:39]} 9. e4 {[%emt 0:12:12]} dxc4 {[%emt 0:00:57]} 10. Nxc4 {[%emt 0:03:29]} b5 {[%emt 0:00:05]} 11. Ne3 {[%emt 0:08:02]} b4 {[%emt 0:00:11]} 12. Na4 {[%emt 0:01:26]} Ba6 {[%emt 0:01:31]} 13. b3 {[%emt 0:06:29]} Bxf1 {[%emt 0:02:36]} 14. Qxf1 {[%emt 0:00:39]} Nb6 {[%emt 0:05:33]} 15. Nxb6 {[%emt 0:03:48]} Qxb6 {[%emt 0:00:10]} 16. Bb2 {[%emt 0:01:29]} Rfd8 {[%emt 0:04:30]} 17. Rd1 {[%emt 0:01:32]} Rac8 {[%emt 0:01:05]} 18. h3 {[%emt 0:03:39]} Qa7 {[%emt 0:08:06]} 19. Rd2 {[%emt 0:11:50]} Ne8 {[%emt 0:09:36]} 20. Qd1 {[%emt 0:02:48]} Nd6 {[%emt 0:09:37]} 21. d5 {[%emt 0:03:53]} exd5 {[%emt 0:02:25]} 22. exd5 {[%emt 0:01:04]} c5 {[%emt 0:00:14]} 23. Qg4 {[%emt 0:08:19]} Bf8 {[%emt 0:00:16]} 24. Bf1 {[%emt 0:00:57]} Qd7 {[%emt 0:02:25]} 25. Qh5 {[%emt 0:00:57]} Re8 {[%emt 0:03:28]} 26. Bd3 {[%emt 0:01:09]} g6 {[%emt 0:07:03]} 27. Ng4 {[%emt 0:07:09]} Bg7 {[%emt 0:01:11]} 28. Qh4 {[%emt 0:04:52]} Bxb2 {[%emt 0:00:20]} 29. Rxb2 {[%emt 0:00:09]} Re1+ {[%emt 0:00:06]} 30. Kh2 {[%emt 0:01:15]} Qe7 {[%emt 0:00:13]} 31. Nh6+ {[%emt 0:03:54]} Kg7 {[%emt 0:00:17]} 32. Qf4 {[%emt 0:00:08]} Qe5 {[%emt 0:01:41]} 33. Qd2 {[%emt 0:00:14]} Rd1 {[%emt 0:00:31]} 34. Qxd1 {[%emt 0:00:36]} Qxb2 {[%emt 0:00:05]} 35. Ng4 {[%emt 0:00:36]} h5 {[%emt 0:00:08]} 0-1

[Event "16th Marseille Festival 2023"]
[Site "Marseille"]
[Date "2023.12.30"]
[Round "3.4"]
[White "Petrosyan, Armen"]
[Black "Avanesyan, Davit"]
[Result "0-1"]
[WhiteElo "2368"]
[BlackElo "2142"]
[PlyCount "99"]
[EventDate "2023.12.30"]
[EventType "swiss"]
[EventCountry "FRA"]
[TimeControl "5400+30"]

1. e4 {[%emt 0:00:29]} g6 {[%emt 0:00:19]} 2. d4 {[%emt 0:00:12]} Bg7 {[%emt 0:00:04]} 3. Nf3 {[%emt 0:00:41]} d6 {[%emt 0:00:08]} 4. Bd3 {[%emt 0:01:13]} Nf6 {[%emt 0:02:53]} 5. O-O {[%emt 0:00:34]} O-O {[%emt 0:01:08]} 6. h3 {[%emt 0:01:02]} Nc6 {[%emt 0:00:51]} 7. c3 {[%emt 0:00:12]} e5 {[%emt 0:04:46]} 8. Re1 {[%emt 0:03:26]} h6 {[%emt 0:04:47]} 9. Nbd2 {[%emt 0:01:30]} Nh5 {[%emt 0:05:07]} 10. d5 {[%emt 0:12:30]} Nb8 {[%emt 0:00:29]} 11. Nf1 {[%emt 0:02:23]} c6 {[%emt 0:03:05]} 12. dxc6 {[%emt 0:02:27]} bxc6 {[%emt 0:00:09]} 13. Ng3 {[%emt 0:10:25]} Nxg3 {[%emt 0:03:55]} 14. fxg3 {[%emt 0:00:07]} Qc7 {[%emt 0:00:21]} 15. c4 {[%emt 0:04:08]} Nd7 {[%emt 0:01:26]} 16. Be3 {[%emt 0:01:16]} a5 {[%emt 0:00:31]} 17. Qd2 {[%emt 0:01:20]} Kh7 {[%emt 0:00:14]} 18. g4 {[%emt 0:02:08]} Nc5 {[%emt 0:01:28]} 19. Bc2 {[%emt 0:04:59]} Ne6 {[%emt 0:06:55]} 20. Rad1 {[%emt 0:00:53]} Rd8 {[%emt 0:00:08]} 21. Qf2 {[%emt 0:02:25]} Rb8 {[%emt 0:01:39]} 22. b3 {[%emt 0:00:18]} Qe7 {[%emt 0:09:01]} 23. Bb6 {[%emt 0:05:13]} Rd7 {[%emt 0:01:08]} 24. Bxa5 {[%emt 0:42:39]} Ra7 {[%emt 0:00:04]} 25. b4 {[%emt 0:00:00]} Nd4 {[%emt 0:00:09]} 26. Nxd4 {[%emt 0:00:00]} exd4 {[%emt 0:00:05]} 27. Ba4 {[%emt 0:00:00]} Rxb4 {[%emt 0:01:50]} 28. Bxb4 {[%emt 0:00:00]} Rxa4 {[%emt 0:00:03]} 29. a3 {[%emt 0:00:00]} c5 {[%emt 0:00:05]} 30. Qc2 {[%emt 0:00:00]} Qa7 {[%emt 0:00:21]} 31. Bd2 {[%emt 0:00:00]} Be6 {[%emt 0:00:07]} 32. Bf4 {[%emt 0:00:00]} Rxc4 {[%emt 0:00:51]} 33. Qd2 {[%emt 0:00:00]} Qa6 {[%emt 0:00:43]} 34. e5 {[%emt 0:00:00]} dxe5 {[%emt 0:01:19]} 35. Bxe5 {[%emt 0:00:00]} Bxe5 {[%emt 0:00:23]} 36. Rxe5 {[%emt 0:00:00]} Qxa3 {[%emt 0:00:02]} 37. Qf4 {[%emt 0:00:00]} Qa7 {[%emt 0:02:41]} 38. Rb1 {[%emt 0:00:00]} d3 {[%emt 0:01:00]} 39. Qf3 {[%emt 0:00:00]} d2 {[%emt 0:00:43]} 40. Qe3 {[%emt 0:00:00]} Rd4 {[%emt 0:01:15]} 41. Rd1 {[%emt 0:00:00]} Qa4 {[%emt 0:00:04]} 42. Qf3 {[%emt 0:04:09]} Rf4 {[%emt 0:00:15]} 43. Qe2 {[%emt 0:00:06]} Bc4 {[%emt 0:00:03]} 44. Qxd2 {[%emt 0:00:28]} Rd4 {[%emt 0:00:02]} 45. Qe3 {[%emt 0:01:18]} Qxd1+ {[%emt 0:00:44]} 46. Kh2 {[%emt 0:00:05]} Qd2 {[%emt 0:00:10]} 47. Qf3 {[%emt 0:00:24]} Qf4+ {[%emt 0:00:14]} 48. Qxf4 {[%emt 0:00:04]} Rxf4 {[%emt 0:00:03]} 49. Rxc5 {[%emt 0:00:03]} Be6 {[%emt 0:00:10]} 50. g5 {[%emt 0:00:29]} 0-1

[Event "16th Marseille Festival 2023"]
[Site "Marseille"]
[Date "2023.12.30"]
[Round "3.5"]
[White "Fabre, Jean-charles"]
[Black "Charlier, Antoine"]
[Result "0-1"]
[WhiteElo "1883"]
[BlackElo "2147"]
[PlyCount "55"]
[EventDate "2023.12.30"]
[EventType "swiss"]
[EventCountry "FRA"]
[TimeControl "5400+30"]

1. c4 {[%emt 0:03:15]} e5 {[%emt 0:00:07]} 2. Nc3 {[%emt 0:00:30]} Nc6 {[%emt 0:00:13]} 3. Nf3 {[%emt 0:00:36]} Nf6 {[%emt 0:00:19]} 4. e3 {[%emt 0:00:24]} d5 {[%emt 0:10:24]} 5. cxd5 {[%emt 0:00:11]} Nxd5 {[%emt 0:00:09]} 6. Bb5 {[%emt 0:00:09]} Nxc3 {[%emt 0:01:40]} 7. bxc3 {[%emt 0:00:18]} Bd6 {[%emt 0:03:33]} 8. d4 {[%emt 0:00:31]} Bd7 {[%emt 0:17:35]} 9. Bxc6 {[%emt 0:13:56]} Bxc6 {[%emt 0:00:27]} 10. dxe5 {[%emt 0:00:25]} Bxf3 {[%emt 0:03:35]} 11. Qxf3 {[%emt 0:00:30]} Bxe5 {[%emt 0:01:05]} 12. O-O {[%emt 0:00:50]} O-O {[%emt 0:02:36]} 13. Ba3 {[%emt 0:03:44]} Re8 {[%emt 0:03:24]} 14. Qxb7 {[%emt 0:03:24]} Rb8 {[%emt 0:20:57]} 15. Qc6 {[%emt 0:03:54]} Rb6 {[%emt 0:04:43]} 16. Qa4 {[%emt 0:13:22]} Ree6 {[%emt 0:06:17]} 17. Bc5 {[%emt 0:19:34]} Rbc6 {[%emt 0:09:27]} 18. Bd4 {[%emt 0:02:17]} Qh4 {[%emt 0:10:34]} 19. g3 {[%emt 0:07:29]} Qh5 {[%emt 0:02:04]} 20. Rab1 {[%emt 0:02:31]} h6 {[%emt 0:00:49]} 21. Rb5 {[%emt 0:01:42]} f6 {[%emt 0:00:26]} 22. f4 {[%emt 0:12:26]} Qe2 {[%emt 0:00:07]} 23. fxe5 {[%emt 0:00:31]} fxe5 {[%emt 0:00:42]} 24. Rxe5 {[%emt 0:00:36]} Rf6 {[%emt 0:00:39]} 25. Re8+ {[%emt 0:01:19]} Kf7 {[%emt 0:00:22]} 26. Bxf6 {[%emt 0:00:23]} Rxf6 {[%emt 0:00:30]} 27. Qd7+ {[%emt 0:00:47]} Kg6 {[%emt 0:00:13]} 28. Rxf6+ {[%emt 0:00:21]} 0-1

[Event "16th Marseille Festival 2023"]
[Site "Marseille"]
[Date "2023.12.30"]
[Round "3.6"]
[White "Bremond, Pascal"]
[Black "Girel, Joseph"]
[Result "0-1"]
[WhiteElo "1894"]
[BlackElo "2495"]
[PlyCount "48"]
[EventDate "2023.12.30"]
[EventType "swiss"]
[EventCountry "FRA"]
[TimeControl "5400+30"]

1. d4 {[%emt 0:00:03]} Nf6 {[%emt 1:31:00]} 2. c4 {[%emt 0:00:10]} e6 {[%emt 0:00:00]} 3. Nf3 {[%emt 0:00:12]} d5 {[%emt 0:00:00]} 4. g3 {[%emt 0:00:08]} Bb4+ {[%emt 0:00:00]} 5. Nbd2 {[%emt 0:02:07]} dxc4 {[%emt 0:00:00]} 6. Qc2 {[%emt 0:00:57]} b5 {[%emt 0:00:00]} 7. a4 {[%emt 0:00:36]} c6 {[%emt 0:00:00]} 8. Bg2 {[%emt 0:00:15]} a5 {[%emt 0:00:00]} 9. O-O {[%emt 0:00:49]} O-O {[%emt 0:00:00]} 10. e4 {[%emt 0:00:53]} Nbd7 {[%emt 0:00:00]} 11. e5 {[%emt 0:10:30]} Nd5 {[%emt 0:00:00]} 12. Ne4 {[%emt 0:00:14]} f5 {[%emt 0:00:00]} 13. exf6 {[%emt 0:02:30]} gxf6 {[%emt 0:00:00]} 14. Bh6 {[%emt 0:04:24]} Rf7 {[%emt 0:00:00]} 15. h4 {[%emt 0:04:04]} N7b6 {[%emt 0:00:00]} 16. axb5 {[%emt 0:02:47]} cxb5 {[%emt 0:00:00]} 17. Rad1 {[%emt 0:16:35]} Raa7 {[%emt 0:00:00]} 18. Bh3 {[%emt 0:04:29]} Na4 {[%emt 0:00:00]} 19. Nc5 {[%emt 0:13:05]} Nxc5 {[%emt 0:00:00]} 20. dxc5 {[%emt 0:00:11]} Bxc5 {[%emt 0:00:00]} 21. Nd4 {[%emt 0:07:03]} Qb6 {[%emt 0:00:00]} 22. Qe4 {[%emt 0:04:08]} f5 {[%emt 0:00:00]} 23. Nxf5 {[%emt 0:10:46]} Nf6 {[%emt 0:00:00]} 24. Qe5 {[%emt 0:05:47]} exf5 {[%emt 0:00:00]} 0-1

[Event "16th Marseille Festival 2023"]
[Site "Marseille"]
[Date "2023.12.30"]
[Round "3.7"]
[White "Perret, Timothe"]
[Black "Le Roy, Tristan"]
[Result "1-0"]
[WhiteElo "1854"]
[BlackElo "1955"]
[PlyCount "119"]
[EventDate "2023.12.30"]
[EventType "swiss"]
[EventCountry "FRA"]
[TimeControl "5400+30"]

1. e4 {[%emt 0:00:49]} e5 {[%emt 0:00:04]} 2. Nf3 {[%emt 0:00:06]} Nc6 {[%emt 0:00:06]} 3. Bb5 {[%emt 0:00:05]} a6 {[%emt 0:00:06]} 4. Ba4 {[%emt 0:00:05]} Nf6 {[%emt 0:00:10]} 5. O-O {[%emt 0:00:06]} Be7 {[%emt 0:00:19]} 6. Re1 {[%emt 0:00:35]} b5 {[%emt 0:00:07]} 7. Bb3 {[%emt 0:00:06]} O-O {[%emt 0:00:40]} 8. c3 {[%emt 0:00:06]} d5 {[%emt 0:01:03]} 9. exd5 {[%emt 0:00:10]} Nxd5 {[%emt 0:00:05]} 10. Nxe5 {[%emt 0:00:09]} Nxe5 {[%emt 0:00:04]} 11. Rxe5 {[%emt 0:00:09]} c6 {[%emt 0:00:13]} 12. d3 {[%emt 0:00:07]} Bd6 {[%emt 0:02:57]} 13. Re1 {[%emt 0:00:22]} Bf5 {[%emt 0:05:42]} 14. Qf3 {[%emt 0:00:19]} Qd7 {[%emt 0:09:15]} 15. Bxd5 {[%emt 0:12:38]} cxd5 {[%emt 0:00:20]} 16. Bf4 {[%emt 0:00:38]} Rae8 {[%emt 0:06:55]} 17. Nd2 {[%emt 0:01:29]} Bxf4 {[%emt 0:01:44]} 18. Qxf4 {[%emt 0:00:12]} Bxd3 {[%emt 0:00:39]} 19. Nf3 {[%emt 0:03:44]} Bg6 {[%emt 0:23:27]} 20. Nd4 {[%emt 0:14:07]} Rxe1+ {[%emt 0:07:20]} 21. Rxe1 {[%emt 0:01:13]} Re8 {[%emt 0:00:27]} 22. Re3 {[%emt 0:02:39]} Rxe3 {[%emt 0:01:02]} 23. Qxe3 {[%emt 0:00:08]} h6 {[%emt 0:00:44]} 24. f3 {[%emt 0:02:37]} Qd6 {[%emt 0:01:39]} 25. g3 {[%emt 0:02:25]} Kh7 {[%emt 0:00:49]} 26. Ne2 {[%emt 0:01:04]} Qd7 {[%emt 0:04:20]} 27. Qe5 {[%emt 0:03:38]} f6 {[%emt 0:04:03]} 28. Qf4 {[%emt 0:00:16]} Qe6 {[%emt 0:04:24]} 29. Kf2 {[%emt 0:00:20]} Bd3 {[%emt 0:00:36]} 30. Qe3 {[%emt 0:00:34]} Qxe3+ {[%emt 0:02:10]} 31. Kxe3 {[%emt 0:00:16]} Bb1 {[%emt 0:06:29]} 32. a3 {[%emt 0:01:48]} g5 {[%emt 0:03:18]} 33. Kd4 {[%emt 0:00:39]} Ba2 {[%emt 0:00:09]} 34. Nc1 {[%emt 0:00:56]} Bc4 {[%emt 0:00:07]} 35. b3 {[%emt 0:00:10]} Bf1 {[%emt 0:00:05]} 36. Kxd5 {[%emt 0:00:11]} Bg2 {[%emt 0:00:04]} 37. Kc5 {[%emt 0:02:47]} Bxf3 {[%emt 0:00:35]} 38. Kb6 {[%emt 0:00:07]} f5 {[%emt 0:00:29]} 39. Kxa6 {[%emt 0:00:30]} Bg2 {[%emt 0:17:14]} 40. Kxb5 {[%emt 0:01:10]} h5 {[%emt 0:00:00]} 41. Kc5 {[%emt 0:01:17]} f4 {[%emt 0:00:00]} 42. gxf4 {[%emt 0:00:32]} g4 {[%emt 0:00:00]} 43. Kd4 {[%emt 0:00:23]} h4 {[%emt 0:00:00]} 44. Ke3 {[%emt 0:01:45]} Bd5 {[%emt 0:00:00]} 45. Kf2 {[%emt 0:00:22]} Kg6 {[%emt 0:00:00]} 46. c4 {[%emt 0:00:37]} Be4 {[%emt 0:00:00]} 47. Ne2 {[%emt 0:00:18]} Kf5 {[%emt 0:00:00]} 48. c5 {[%emt 0:02:02]} Bd3 {[%emt 0:00:00]} 49. a4 {[%emt 0:00:46]} Ke4 {[%emt 0:00:00]} 50. b4 {[%emt 0:04:05]} Kd5 {[%emt 0:00:00]} 51. Nc3+ {[%emt 0:00:43]} Kc4 {[%emt 0:00:00]} 52. c6 {[%emt 0:00:19]} Kxc3 {[%emt 0:00:00]} 53. b5 {[%emt 0:00:37]} Be4 {[%emt 0:02:51]} 54. f5 {[%emt 0:44:14]} Bxf5 {[%emt 0:04:07]} 55. b6 {[%emt 0:00:00]} Be4 {[%emt 0:00:04]} 56. b7 {[%emt 0:00:00]} g3+ {[%emt 0:00:11]} 57. hxg3 {[%emt 0:00:00]} hxg3+ {[%emt 0:00:03]} 58. Kxg3 {[%emt 0:00:00]} Bxc6 {[%emt 0:00:03]} 59. b8=Q {[%emt 0:00:00]} Bxa4 {[%emt 0:00:02]} 60. Kf4 {[%emt 0:03:00]} 1-0

[Event "16th Marseille Festival 2023"]
[Site "Marseille"]
[Date "2023.12.30"]
[Round "3.8"]
[White "Fischer, Thorange"]
[Black "Philippe, Guillaume"]
[Result "0-1"]
[WhiteElo "1832"]
[BlackElo "2334"]
[PlyCount "82"]
[EventDate "2023.12.30"]
[EventType "swiss"]
[EventCountry "FRA"]
[TimeControl "5400+30"]

1. Nf3 {[%emt 0:00:05]} Nf6 {[%emt 0:03:27]} 2. g3 {[%emt 0:00:07]} b5 {[%emt 0:00:09]} 3. d4 {[%emt 0:00:38]} Bb7 {[%emt 0:00:04]} 4. Bg2 {[%emt 0:00:45]} e6 {[%emt 0:00:08]} 5. O-O {[%emt 0:00:28]} c5 {[%emt 0:00:27]} 6. c3 {[%emt 0:00:30]} Na6 {[%emt 0:01:38]} 7. Na3 {[%emt 0:21:16]} Nc7 {[%emt 0:01:51]} 8. Nc2 {[%emt 0:04:36]} Be7 {[%emt 0:00:23]} 9. dxc5 {[%emt 0:22:08]} Bxc5 {[%emt 0:00:25]} 10. a4 {[%emt 0:00:12]} a6 {[%emt 0:01:24]} 11. axb5 {[%emt 0:05:29]} axb5 {[%emt 0:00:06]} 12. Bg5 {[%emt 0:00:34]} h6 {[%emt 0:04:20]} 13. Bxf6 {[%emt 0:08:23]} Qxf6 {[%emt 0:00:28]} 14. Ne5 {[%emt 0:00:05]} Qxe5 {[%emt 0:00:12]} 15. Bxb7 {[%emt 0:00:19]} Rxa1 {[%emt 0:00:04]} 16. Nxa1 {[%emt 0:01:13]} d5 {[%emt 0:00:41]} 17. Nb3 {[%emt 0:08:17]} Bb6 {[%emt 0:01:47]} 18. Bc6+ {[%emt 0:06:30]} Ke7 {[%emt 0:00:35]} 19. Qd3 {[%emt 0:03:06]} Rb8 {[%emt 0:00:46]} 20. Kg2 {[%emt 0:04:34]} b4 {[%emt 0:06:00]} 21. cxb4 {[%emt 0:02:25]} Qxb2 {[%emt 0:00:18]} 22. b5 {[%emt 0:02:54]} h5 {[%emt 0:00:46]} 23. h4 {[%emt 0:01:18]} g6 {[%emt 0:00:44]} 24. Rb1 {[%emt 0:03:58]} Qf6 {[%emt 0:00:24]} 25. e3 {[%emt 0:00:15]} Kf8 {[%emt 0:00:17]} 26. Nd4 {[%emt 0:00:50]} e5 {[%emt 0:01:44]} 27. Ne2 {[%emt 0:02:30]} Rd8 {[%emt 0:00:26]} 28. Rf1 {[%emt 0:00:23]} Kg7 {[%emt 0:00:20]} 29. e4 {[%emt 0:00:21]} dxe4 {[%emt 0:00:54]} 30. Qxe4 {[%emt 0:00:12]} Rd2 {[%emt 0:00:09]} 31. Qf3 {[%emt 0:00:46]} Qxf3+ {[%emt 0:04:47]} 32. Kxf3 {[%emt 0:00:33]} f5 {[%emt 0:00:04]} 33. Ng1 {[%emt 0:00:44]} e4+ {[%emt 0:01:24]} 34. Kg2 {[%emt 0:00:19]} Ne6 {[%emt 0:08:04]} 35. Nh3 {[%emt 0:00:16]} Nd4 {[%emt 0:00:05]} 36. Bb7 {[%emt 0:00:58]} Rb2 {[%emt 0:00:27]} 37. Bc6 {[%emt 0:00:19]} e3 {[%emt 0:00:07]} 38. Re1 {[%emt 0:00:41]} e2 {[%emt 0:00:09]} 39. Nf4 {[%emt 0:00:20]} Ba5 {[%emt 0:00:04]} 40. Nd3 {[%emt 0:00:22]} Rb3 {[%emt 0:01:56]} 41. Ra1 {[%emt 0:00:50]} Rxd3 {[%emt 0:00:07]} 0-1

[Event "16th Marseille Festival 2023"]
[Site "Marseille"]
[Date "2023.12.30"]
[Round "4.1"]
[White "Avanesyan, Davit"]
[Black "Lamard, Guillaume"]
[Result "1/2-1/2"]
[WhiteElo "2142"]
[BlackElo "2497"]
[PlyCount "61"]
[EventDate "2023.12.30"]
[EventType "swiss"]
[EventCountry "FRA"]
[TimeControl "5400+30"]

1. e4 {[%emt 0:00:35]} e5 {[%emt 0:00:44]} 2. Nf3 {[%emt 0:00:06]} Nc6 {[%emt 0:00:06]} 3. Be2 {[%emt 0:00:03]} Nf6 {[%emt 0:02:13]} 4. Nc3 {[%emt 0:00:10]} d5 {[%emt 0:00:17]} 5. exd5 {[%emt 0:00:07]} Nxd5 {[%emt 0:00:04]} 6. Bb5 {[%emt 0:00:23]} Nxc3 {[%emt 0:00:35]} 7. bxc3 {[%emt 0:00:14]} Bd6 {[%emt 0:00:05]} 8. d4 {[%emt 0:00:38]} exd4 {[%emt 0:00:05]} 9. cxd4 {[%emt 0:02:22]} O-O {[%emt 0:00:05]} 10. O-O {[%emt 0:00:08]} h6 {[%emt 0:00:02]} 11. h3 {[%emt 0:00:17]} Qf6 {[%emt 0:01:01]} 12. Bb2 {[%emt 0:00:51]} Nb4 {[%emt 0:18:21]} 13. c4 {[%emt 0:08:19]} a6 {[%emt 0:03:55]} 14. Ba4 {[%emt 0:00:25]} b5 {[%emt 0:00:09]} 15. Bb3 {[%emt 0:04:02]} Bb7 {[%emt 0:09:22]} 16. a3 {[%emt 0:04:36]} Bxf3 {[%emt 0:25:25]} 17. Qxf3 {[%emt 0:00:08]} Qxf3 {[%emt 0:00:08]} 18. gxf3 {[%emt 0:00:06]} Nd3 {[%emt 0:00:09]} 19. Bc1 {[%emt 0:00:47]} Nxc1 {[%emt 0:04:28]} 20. Rfxc1 {[%emt 0:00:22]} bxc4 {[%emt 0:00:07]} 21. Bxc4 {[%emt 0:00:15]} a5 {[%emt 0:00:27]} 22. Bb5 {[%emt 0:00:23]} Rfd8 {[%emt 0:01:27]} 23. a4 {[%emt 1:16:43]} Bf4 {[%emt 0:01:23]} 24. Rc4 {[%emt 0:00:00]} Rd5 {[%emt 0:06:56]} 25. Re1 {[%emt 0:00:00]} Rad8 {[%emt 0:00:58]} 26. Re8+ {[%emt 0:00:00]} Rxe8 {[%emt 0:00:03]} 27. Bxe8 {[%emt 0:00:00]} Kf8 {[%emt 0:00:36]} 28. Bc6 {[%emt 0:00:00]} Rg5+ {[%emt 0:00:33]} 29. Kh1 {[%emt 0:00:00]} Bd6 {[%emt 0:02:53]} 30. d5 {[%emt 0:00:00]} Re5 {[%emt 0:02:52]} 31. Re4 {[%emt 0:00:00]} 1/2-1/2